bitfinex/quotes_SOLUSD_20250209
["timestamp","ask_amount","ask_price","bid_price","bid_amount"]
[1739059508876,12.01927819,199.87,199.85,135.7999]
[1739059509188,25.43112672,199.86,199.85,135.7999]
[1739059510386,25.43112672,199.86,199.81,140.8044]
[1739059510561,25.43112672,199.84,199.81,135.7999]
[1739059510971,12.01927819,199.83,199.81,135.7999]
[1739059511782,12.01927819,199.84,199.81,135.7999]
[1739059512099,12.01927819,199.87,199.81,140.8045]
[1739059512269,12.01927819,199.88,199.81,152.82377819]
[1739059512597,13.41184853,199.87,199.81,152.82377819]
[1739059512767,13.41184853,199.85,199.81,135.7999]
[1739059513076,13.41184853,199.87,199.81,135.7999]
[1739059513077,12.01927819,199.84,199.81,135.7999]
[1739059513283,13.41184853,199.82,199.81,135.7999]
[1739059513582,13.41184853,199.82,199.8,0.063]
[1739059513978,12.01927819,199.82,199.8,0.063]
[1739059514595,12.01927819,199.81,199.8,0.063]
[1739059514796,25.68210672,199.81,199.8,0.063]
[1739059515870,42.20558491,199.81,199.8,0.063]
[1739059516073,44.20558491,199.81,199.8,0.063]
[1739059516269,20.25098,199.78,199.72,83.063]
[1739059516502,25.43112672,199.73,199.72,83.063]
[1739059517072,13.41184853,199.73,199.72,83.063]
[1739059517296,12.01927819,199.78,199.72,83.063]
[1739059517481,4.5042,199.81,199.72,83.063]
[1739059517482,12.01927819,199.76,199.72,218.8629]
[1739059518005,13.41184853,199.75,199.72,218.8629]
[1739059518518,12.01927819,199.75,199.72,218.8629]
[1739059519479,13.41184853,199.73,199.72,218.8629]
[1739059519677,13.41184853,199.73,199.72,83.063]
[1739059520797,0.25098,199.74,199.72,83.063]
[1739059521007,13.66282853,199.74,199.72,83.063]
[1739059521501,12.27025819,199.74,199.72,0.063]
[1739059521707,25.68210672,199.73,199.72,0.063]
[1739059522409,25.43112672,199.73,199.72,0.063]
[1739059522702,12.01927819,199.74,199.72,0.063]
[1739059524406,13.41184853,199.74,199.72,0.063]
[1739059526610,25.43112672,199.74,199.72,0.063]
[1739059527997,25.43112672,199.73,199.72,0.063]
[1739059528195,13.41184853,199.73,199.72,0.063]
[1739059528805,25.68210672,199.73,199.72,0.063]
[1739059529112,30.18810672,199.73,199.72,0.063]
[1739059530021,0.25098,199.71,199.68,83.0]
[1739059530193,25.43112672,199.69,199.68,83.0]
[1739059531102,13.41184853,199.69,199.68,83.0]
[1739059531591,32.01927819,199.74,199.68,88.0079]
[1739059531790,12.01927819,199.75,199.68,100.02717819]
[1739059532001,12.01927819,199.76,199.7,5.0075]
[1739059532721,12.01927819,199.76,199.7,223.8074]
[1739059533095,13.41184853,199.75,199.7,223.8074]
[1739059533402,7.8821,199.77,199.71,12.01927819]
[1739059533610,12.01927819,199.79,199.72,12.01927819]
[1739059533809,13.41184853,199.78,199.72,230.81927819]
[1739059534021,13.41184853,199.78,199.74,5.0065]
[1739059534222,12.27025819,199.8,199.74,140.8065]
[1739059534412,0.03,199.81,199.75,12.01927819]
[1739059534730,0.03,199.81,199.76,12.01927819]
[1739059534900,0.03,199.81,199.76,147.81927819]
[1739059536220,0.03,199.81,199.77,5.0057]
[1739059536605,0.03,199.81,199.77,152.82497819]
[1739059536920,0.03,199.81,199.78,12.01927819]
[1739059537902,0.03,199.81,199.79,17.02447819]
[1739059538107,0.03,199.81,199.8,12.01927819]
[1739059538310,0.03,199.81,199.8,147.81927819]
[1739059538512,0.03,199.81,199.8,230.81927819]
[1739059540109,0.03,199.81,199.8,235.82427819]
[1739059540303,0.03,199.81,199.8,223.805]
[1739059541435,0.03,199.81,199.8,83.0]
[1739059542935,0.03,199.81,199.77,218.8]
[1739059543151,25.43112672,199.8,199.77,218.8]
[1739059544133,25.43112672,199.8,199.77,83.0]
[1739059544341,25.43112672,199.78,199.77,83.0]
[1739059544715,0.25098,199.77,199.71,218.8]
[1739059545012,13.41184853,199.76,199.71,218.8]
[1739059545939,13.41184853,199.76,199.71,223.8071]
[1739059546838,0.25098,199.77,199.71,235.82637819]
[1739059547418,13.41184853,199.78,199.72,12.01927819]
[1739059547619,12.01927819,199.8,199.73,12.01927819]
[1739059548139,13.66282853,199.79,199.73,147.81927819]
[1739059548546,13.66282853,199.79,199.73,152.82577819]
[1739059549344,25.68210672,199.79,199.73,135.8]
[1739059549643,30.18690672,199.79,199.73,135.8]
[1739059550346,0.25098,199.79,199.73,135.8]
[1739059550729,13.66282853,199.77,199.73,135.8]
[1739059553839,18.16792853,199.77,199.73,135.8]
[1739059554024,18.16792853,199.77,199.73,83.0]
[1739059554220,13.41184853,199.74,199.73,83.0]
[1739059557132,13.41184853,199.75,199.73,83.0]
[1739059558750,0.03,199.78,199.73,95.01927819]
[1739059559855,0.03,199.78,199.73,100.02597819]
[1739059560147,0.03,199.78,199.74,12.01927819]
[1739059560317,20.03,199.78,199.74,12.01927819]
[1739059560521,20.03,199.78,199.74,17.02557819]
[1739059561424,0.03,199.78,199.77,12.01927819]
[1739059561623,0.03,199.78,199.77,95.01927819]
[1739059563449,0.03,199.78,199.77,100.02497819]
[1739059564326,0.03,199.78,199.77,83.0]
[1739059565236,33.69282853,199.78,199.77,83.0]
[1739059565748,38.19772853,199.78,199.77,83.0]
[1739059565946,13.66282853,199.77,199.74,218.8]
[1739059567627,13.66282853,199.77,199.74,83.0]
[1739059567849,13.41184853,199.77,199.74,83.0]
[1739059569142,13.41184853,199.77,199.74,88.0064]
[1739059570355,13.41184853,199.77,199.74,83.0]
[1739059571768,0.25098,199.76,199.74,83.0]
[1739059571947,0.25098,199.76,199.72,135.863]
[1739059572134,0.25098,199.76,199.72,0.063]
[1739059572431,13.66282853,199.76,199.72,0.063]
[1739059573635,0.25098,199.76,199.72,0.063]
[1739059574462,13.41184853,199.77,199.72,12.08227819]
[1739059575344,0.03,199.78,199.74,12.01927819]
[1739059575536,0.03,199.78,199.75,12.01927819]
[1739059576563,0.03,199.78,199.74,218.8]
[1739059578853,13.41184853,199.77,199.74,83.0]
[1739059585961,0.25098,199.76,199.74,83.0]
[1739059586155,15.24982853,199.75,199.74,83.0]
[1739059586546,27.26910672,199.75,199.72,0.063]
[1739059586849,13.66282853,199.73,199.72,0.063]
[1739059587051,25.68210672,199.73,199.72,0.063]
[1739059587865,13.66282853,199.71,199.7,0.063]
[1739059588069,30.18860672,199.71,199.7,0.063]
[1739059588462,13.66282853,199.68,199.67,0.063]
[1739059588663,25.68210672,199.68,199.67,0.063]
[1739059589652,30.18930672,199.68,199.67,0.063]
[1739059595877,25.68210672,199.68,199.67,0.063]
[1739059596183,0.25098,199.68,199.67,0.063]
[1739059596363,33.66282853,199.68,199.67,0.063]
[1739059596569,45.68210672,199.68,199.67,0.063]
[1739059596770,50.18930672,199.68,199.67,0.063]
[1739059598179,45.68210672,199.68,199.67,0.063]
[1739059598391,33.66282853,199.68,199.67,0.063]
[1739059600568,45.68210672,199.68,199.67,0.063]
[1739059602270,50.18930672,199.68,199.67,0.063]
[1739059604669,80.18930672,199.68,199.67,0.063]
[1739059606591,75.88800413,199.68,199.67,0.063]
[1739059608795,77.88800413,199.68,199.67,0.063]
[1739059613601,45.88800413,199.68,199.67,0.063]
[1739059613900,13.66282853,199.68,199.67,0.063]
[1739059615683,13.41184853,199.68,199.67,0.063]
[1739059619909,25.88800413,199.68,199.67,0.063]
[1739059620411,13.41184853,199.68,199.67,0.063]
[1739059620981,0.03,199.7,199.67,0.063]
[1739059621715,0.03,199.7,199.67,226.5809756]
[1739059622010,0.03,199.7,199.69,7.7179756]
[1739059622804,0.03,199.7,199.69,12.7256756]
[1739059624506,0.03,199.7,199.69,13.47670647]
[1739059624820,0.03,199.7,199.69,232.27670647]
[1739059625001,0.03,199.77,199.69,262.397578]
[1739059625180,0.03,199.77,199.76,7.7179756]
[1739059625386,0.03,199.77,199.76,226.5179756]
[1739059626382,0.03,199.77,199.76,218.8]
[1739059627414,0.28098,199.77,199.76,218.8]
[1739059627704,13.41184853,199.76,199.71,218.8]
[1739059627922,25.4542323,199.76,199.71,218.8]
[1739059628807,25.4542323,199.74,199.71,218.8]
[1739059629004,0.25098,199.73,199.67,218.863]
[1739059629215,25.4542323,199.72,199.67,218.863]
[1739059630210,0.25098,199.71,199.67,83.063]
[1739059630898,12.04238377,199.73,199.67,88.0712]
[1739059631099,16.54838377,199.74,199.67,100.11358377]
[1739059632600,12.04238377,199.76,199.69,12.04238377]
[1739059632990,13.66282853,199.75,199.69,12.04238377]
[1739059633196,13.66282853,199.75,199.68,12.04238377]
[1739059633690,4.5352,199.77,199.67,88.0712]
[1739059633691,0.25098,199.72,199.67,83.063]
[1739059635711,0.25098,199.72,199.67,100.11348377]
[1739059636398,0.25098,199.72,199.67,88.0711]
[1739059637419,0.25098,199.72,199.67,83.063]
[1739059638916,0.28098,199.72,199.67,83.063]
[1739059640312,0.03,199.72,199.67,88.0712]
[1739059640523,0.03,199.72,199.7,12.04238377]
[1739059640720,0.03,199.72,199.7,230.84238377]
[1739059641809,0.03,199.72,199.71,5.0072]
[1739059642141,0.03,199.72,199.71,223.8072]
[1739059642305,0.03,199.72,199.71,235.84958377]
[1739059644912,0.03,199.77,199.74,20.0]
[1739059645124,0.03,199.77,199.76,12.04238377]
[1739059645613,0.03,199.78,199.76,12.04238377]
[1739059645801,0.03,199.78,199.77,0.75052779]
[1739059646005,0.03,199.81,199.77,219.74092779]
[1739059646210,0.03,199.81,199.8,24.08476754]
[1739059646527,0.03,199.81,199.8,24.83521709]
[1739059646710,0.03,199.81,199.8,29.84021709]
[1739059647111,0.0001,199.81,199.8,250.61021709]
[1739059647321,0.03,199.9,199.83,20.0]
[1739059647527,0.03,199.9,199.89,12.04238377]
[1739059647701,0.03,199.9,199.89,147.84238377]
[1739059650028,0.03,199.9,199.89,235.84508377]
[1739059651532,0.03,199.9,199.89,230.84238377]
[1739059653534,0.03,199.9,199.89,235.84508377]
[1739059654540,0.03,199.9,199.89,218.8]
[1739059657045,0.03,199.9,199.85,12.04238377]
[1739059657223,13.56733853,199.9,199.85,135.8]
[1739059657424,25.6097223,199.9,199.85,135.8]
[1739059658142,13.56733853,199.9,199.85,135.8]
[1739059658946,12.04238377,199.89,199.84,140.8039]
[1739059659136,13.66282853,199.88,199.82,230.84238377]
[1739059659339,25.7052123,199.88,199.82,218.8]
[1739059660125,25.7052123,199.88,199.82,83.0]
[1739059660325,13.53733853,199.86,199.82,83.0]
[1739059661246,12.16787377,199.86,199.81,135.8]
[1739059661433,13.53733853,199.84,199.81,135.8]
[1739059662450,13.53733853,199.84,199.81,135.863]
[1739059662955,0.12549,199.84,199.81,135.863]
[1739059663259,0.25098,199.84,199.81,0.063]
[1739059663957,18.27638377,199.83,199.81,0.063]
[1739059664250,27.3206123,199.82,199.81,0.063]
[1739059664452,31.8246123,199.82,199.81,0.063]
[1739059664747,13.66282853,199.78,199.73,135.8]
[1739059664953,25.7052123,199.78,199.71,230.84238377]
[1739059665655,12.29336377,199.76,199.71,83.0]
[1739059666637,25.7052123,199.76,199.71,83.0]
[1739059670736,13.65778377,199.82,199.75,12.04238377]
[1739059670937,20.0,199.79,199.73,12.04238377]
[1739059671139,0.25098,199.79,199.73,12.04238377]
[1739059671338,0.25098,199.79,199.73,17.04898377]
[1739059672468,13.41184853,199.8,199.74,12.04238377]
[1739059672660,1.6154,199.82,199.76,12.04238377]
[1739059672969,13.41184853,199.79,199.76,12.04238377]
[1739059673454,20.0,199.8,199.76,12.04238377]
[1739059673659,20.0,199.8,199.77,12.04238377]
[1739059673949,20.0,199.8,199.77,95.04238377]
[1739059674155,13.41184853,199.79,199.77,83.0]
[1739059675843,0.12549,199.8,199.77,83.0]
[1739059676043,13.56733853,199.81,199.79,12.04238377]
[1739059676044,0.03,199.81,199.79,12.04238377]
[1739059676243,0.03,199.81,199.8,12.04238377]
[1739059676450,0.03,199.81,199.8,230.84238377]
[1739059677448,0.03,199.81,199.8,235.84738377]
[1739059683369,0.03,199.81,199.8,247.88976754]
[1739059683669,0.0001,199.81,199.8,247.88976754]
[1739059686574,0.0001,199.81,199.8,248.85976754]
[1739059686758,0.03,199.9,199.83,20.0]
[1739059687073,0.03,199.9,199.89,12.04238377]
[1739059687275,0.03,199.9,199.89,230.84238377]
[1739059688460,0.03,199.9,199.89,235.84508377]
[1739059691181,0.0001,199.9,199.89,235.84508377]
[1739059693375,0.0001,199.9,199.89,247.88746754]
[1739059694975,0.03,199.97,199.92,20.0]
[1739059695174,0.03,199.97,199.96,12.04238377]
[1739059695481,0.03,199.97,199.96,230.84238377]
[1739059696375,0.03,199.97,199.96,235.84338377]
[1739059697175,0.03,199.97,199.96,218.8]
[1739059697375,0.03,199.97,199.96,83.0]
[1739059697689,0.15549,199.97,199.96,83.0]
[1739059698486,25.7352123,199.97,199.96,83.0]
[1739059699376,13.69282853,199.97,199.96,83.0]
[1739059702086,13.44184853,199.97,199.96,83.0]
[1739059702292,0.03,199.97,199.96,83.0]
[1739059703390,0.03,199.97,199.96,88.001]
[1739059705173,0.03,199.97,199.96,83.0]
[1739059705474,0.03,199.97,199.92,12.04238377]
[1739059705475,0.15549,199.97,199.92,95.04238377]
[1739059705677,0.15549,199.97,199.92,83.0]
[1739059707279,0.15549,199.97,199.92,88.0019]
[1739059708295,0.12549,199.96,199.92,88.0019]
[1739059709590,0.03,199.97,199.92,100.04428377]
[1739059711389,0.03,199.97,199.92,235.84428377]
[1739059711590,25.7052123,199.95,199.89,83.063]
[1739059711896,12.29336377,199.91,199.89,83.063]
[1739059712094,25.5797223,199.9,199.89,0.063]
[1739059713266,13.53733853,199.9,199.89,0.063]
[1739059716469,25.7052123,199.9,199.89,0.063]
[1739059719569,30.2074123,199.9,199.89,0.063]
[1739059719971,0.25098,199.86,199.8,83.063]
[1739059720270,0.25098,199.84,199.8,83.063]
[1739059721280,12.29336377,199.84,199.8,83.063]
[1739059722088,0.25098,199.84,199.8,83.063]
[1739059729314,12.29336377,199.84,199.8,83.063]
[1739059730916,20.0,199.87,199.8,88.0678]
[1739059731212,7.8779,199.9,199.8,88.0678]
[1739059731213,12.04238377,199.89,199.82,12.04238377]
[1739059731412,12.04238377,199.89,199.82,17.04658377]
[1739059731413,13.53733853,199.88,199.82,17.04658377]
[1739059731712,0.12549,199.88,199.83,12.04238377]
[1739059732111,13.41184853,199.89,199.83,95.04238377]
[1739059732297,13.41184853,199.89,199.84,12.04238377]
[1739059732608,13.41184853,199.89,199.84,230.84238377]
[1739059733315,13.41184853,199.89,199.85,5.0037]
[1739059733519,12.04238377,199.92,199.85,223.8037]
[1739059733698,12.04238377,199.93,199.86,12.04238377]
[1739059733892,13.53733853,199.92,199.86,230.84238377]
[1739059734393,0.03,199.89,199.86,230.84238377]
[1739059734800,0.03,199.89,199.88,5.003]
[1739059735411,0.03,199.89,199.88,224.55328999]
[1739059735614,0.03,199.89,199.88,235.84538377]
[1739059736410,0.03,199.89,199.88,223.803]
[1739059737295,0.03,199.89,199.88,83.0]
[1739059738384,0.03,199.89,199.88,88.003]
[1739059740520,0.03,199.89,199.88,100.7956337]
[1739059741118,0.03,199.89,199.88,236.5956337]
[1739059741415,0.03,199.89,199.88,235.84538377]
[1739059742615,0.03,199.89,199.88,218.8]
[1739059743619,0.03,199.89,199.88,235.84538377]
[1739059746815,0.03,199.97,199.88,248.41588377]
[1739059747003,0.03,199.97,199.93,12.04238377]
[1739059747193,0.03,199.97,199.93,230.84238377]
[1739059747394,0.03,199.97,199.93,218.8]
[1739059748097,0.03,199.97,199.93,223.8015]
[1739059749618,0.03,199.97,199.93,235.84388377]
[1739059750299,0.15549,199.97,199.93,218.8]
[1739059750495,13.41184853,199.96,199.93,218.8]
[1739059751624,0.12549,199.95,199.93,83.0]
[1739059752819,13.41184853,199.94,199.93,83.0]
[1739059753324,21.10509679,199.94,199.93,83.0]
[1739059753616,0.03,199.97,199.93,88.0017]
[1739059754722,0.03,199.97,199.93,223.8017]
[1739059755409,0.03,199.97,199.94,7.69324826]
[1739059757432,0.03,199.97,199.94,13.44470416]
[1739059758730,0.03,199.97,199.96,7.69324826]
[1739059758921,0.03,199.97,199.96,227.24313985]
[1739059759235,0.03,199.97,199.96,226.49324826]
[1739059760643,0.03,199.97,199.96,230.80948712]
[1739059761524,0.03,199.97,199.96,235.81048712]
[1739059763713,0.03,199.97,199.96,223.801]
[1739059764142,0.03,199.97,199.96,218.8]
[1739059764337,0.03,199.97,199.96,83.0]
[1739059764614,25.45133565,199.97,199.96,83.0]
[1739059765143,13.44184853,199.97,199.96,83.0]
[1739059765318,0.03,199.97,199.96,83.0]
[1739059766240,13.44184853,199.97,199.96,83.0]
[1739059768343,25.70231565,199.97,199.96,83.0]
[1739059768540,0.25098,199.96,199.88,218.863]
[1739059768727,13.41184853,199.92,199.88,218.863]
[1739059769247,12.00948712,199.92,199.88,218.863]
[1739059769447,0.12549,199.93,199.88,223.8659]
[1739059770550,13.41184853,199.92,199.88,223.8659]
[1739059771953,13.53733853,199.93,199.88,223.8659]
[1739059772747,0.12549,199.93,199.88,223.8659]
[1739059777650,12.00948712,199.96,199.89,12.00948712]
[1739059777857,0.03,199.97,199.91,12.00948712]
[1739059778352,13.69282853,199.97,199.9,12.00948712]
[1739059779536,12.29046712,199.97,199.9,12.00948712]
[1739059779927,12.29046712,199.97,199.91,5.0022]
[1739059780247,0.28098,199.97,199.91,17.01168712]
[1739059780654,0.28098,199.97,199.91,235.81168712]
[1739059780655,0.15549,199.97,199.91,235.81168712]
[1739059780863,0.03,199.97,199.92,12.00948712]
[1739059781155,0.03,199.97,199.93,12.00948712]
[1739059781353,0.03,199.97,199.94,12.75952403]
[1739059781528,0.03,199.97,199.95,12.00948712]
[1739059781719,0.03,199.97,199.96,5.001]
[1739059781919,0.03,199.97,199.96,17.01048712]
[1739059782149,0.03,199.97,199.96,17.76044175]
[1739059782557,0.03,199.97,199.96,88.001]
[1739059784128,0.03,199.97,199.96,96.43924599]
[1739059785257,0.03,199.97,199.96,88.75096265]
[1739059785457,0.03,199.97,199.96,88.001]
[1739059785758,0.03,199.97,199.96,223.801]
[1739059788869,7.96926334,199.97,199.91,218.8]
[1739059789031,7.68828334,199.93,199.91,218.8]
[1739059789231,7.68828334,199.93,199.91,83.0]
[1739059789951,21.10013187,199.94,199.91,83.0]
[1739059790258,0.03,199.97,199.91,90.68828334]
[1739059790442,0.03,199.97,199.91,226.48828334]
[1739059790643,0.03,199.97,199.91,230.81744689]
[1739059790829,0.03,199.97,199.91,235.81964689]
[1739059791038,0.03,199.97,199.93,12.01744689]
[1739059791234,0.03,199.97,199.94,12.01744689]
[1739059791647,0.03,199.97,199.93,12.01744689]
[1739059792458,0.03,199.97,199.94,5.0015]
[1739059794455,0.03,199.97,199.94,12.01744689]
[1739059794762,0.03,199.97,199.94,230.81744689]
[1739059795555,0.03,199.97,199.95,5.0012]
[1739059795857,0.03,199.97,199.95,223.8012]
[1739059803068,0.03,199.97,199.96,12.76743269]
[1739059803250,0.03,199.97,199.96,231.56743269]
[1739059803450,0.03,199.97,199.96,230.81744689]
[1739059803652,0.03,200.0,199.96,231.81744689]
[1739059803980,0.03,200.0,199.99,12.01744689]
[1739059804161,0.03,200.0,199.99,235.81764689]
[1739059804777,0.03,200.0,199.99,83.0]
[1739059805074,12.29842689,200.0,199.99,83.0]
[1739059805882,12.29842689,200.0,199.93,223.8016]
[1739059806171,12.26842689,199.96,199.93,83.0]
[1739059806346,12.01744689,199.95,199.93,83.0]
[1739059806552,13.41184853,199.95,199.93,83.0]
[1739059807271,13.41184853,199.95,199.91,135.8]
[1739059807583,13.41184853,199.95,199.91,140.8022]
[1739059807878,0.25098,199.96,199.91,140.8022]
[1739059808050,0.03,199.97,199.95,12.01744689]
[1739059808255,0.03,199.97,199.96,17.76834394]
[1739059809062,0.03,199.97,199.96,236.56834394]
[1739059809373,0.03,199.97,199.96,235.81844689]
[1739059810581,0.03,199.97,199.96,223.801]
[1739059813485,0.03,199.97,199.96,235.81844689]
[1739059814485,0.03,199.97,199.96,223.801]
[1739059814807,0.03,199.97,199.96,235.81844689]
[1739059815493,0.03,199.97,199.96,223.801]
[1739059815678,0.03,199.97,199.96,218.8]
[1739059816767,0.03,199.97,199.96,235.81844689]
[1739059817582,0.03,199.97,199.96,223.801]
[1739059817774,0.03,199.97,199.96,218.8]
[1739059818177,0.03,199.97,199.96,83.0]
[1739059818874,13.69282853,199.97,199.96,83.0]
[1739059820184,25.71027542,199.97,199.9,218.8]
[1739059820381,0.25098,199.94,199.9,218.8]
[1739059820564,13.41184853,199.93,199.9,218.8]
[1739059820762,13.41184853,199.93,199.9,83.0]
[1739059821873,0.25098,199.91,199.9,83.0]
[1739059822396,12.26842689,199.91,199.9,83.0]
[1739059822763,25.68027542,199.91,199.89,0.063]
[1739059822973,25.68027542,199.9,199.89,0.063]
[1739059823672,30.18247542,199.9,199.89,0.063]
[1739059824813,42.19992231,199.9,199.89,0.063]
[1739059825291,43.19992231,199.9,199.89,0.063]
[1739059825791,44.19992231,199.9,199.89,0.063]
[1739059825992,57.68027542,199.89,199.88,0.063]
[1739059826980,0.25098,199.85,199.8,0.063]
[1739059827198,13.66282853,199.81,199.8,0.063]
[1739059829379,0.25098,199.81,199.8,0.063]
[1739059829591,12.01744689,199.85,199.8,0.063]
[1739059829800,0.25098,199.81,199.8,0.063]
[1739059830182,25.42929542,199.82,199.8,0.063]
[1739059830381,12.01744689,199.83,199.8,0.063]
[1739059831005,12.01744689,199.86,199.8,0.063]
[1739059831508,13.66282853,199.85,199.8,0.063]
[1739059831706,12.01744689,199.9,199.82,12.01744689]
[1739059831907,12.01744689,199.93,199.86,12.01744689]
[1739059832089,12.01744689,199.94,199.86,12.01744689]
[1739059832409,13.66282853,199.93,199.86,12.01744689]
[1739059832604,25.68027542,199.93,199.86,12.01744689]
[1739059832812,0.25098,199.9,199.85,5.0037]
[1739059833609,0.25098,199.9,199.85,17.02114689]
[1739059836213,13.41184853,199.91,199.85,152.82114689]
[1739059836389,12.01744689,199.95,199.88,12.01744689]
[1739059836590,12.01744689,199.96,199.89,12.01744689]
[1739059836805,13.66282853,199.95,199.89,12.01744689]
[1739059837214,0.25098,199.95,199.9,12.01744689]
[1739059837407,0.25098,199.95,199.9,230.81744689]
[1739059837911,0.25098,199.95,199.91,5.0022]
[1739059838114,13.66282853,199.93,199.9,218.8]
[1739059838714,12.26842689,199.93,199.9,218.8]
[1739059839717,25.42929542,199.92,199.9,218.8]
[1739059840014,25.42929542,199.91,199.9,218.8]
[1739059840217,0.25098,199.9,199.85,223.8036]
[1739059840516,0.25098,199.88,199.85,83.0]
[1739059840896,13.41184853,199.87,199.85,83.0]
[1739059842915,12.01744689,199.9,199.85,83.0]
[1739059843224,12.01744689,199.92,199.85,100.02114689]
[1739059843508,0.03,199.88,199.85,100.02114689]
[1739059845135,0.03,199.88,199.85,235.82114689]
[1739059845500,0.03,199.88,199.87,12.01744689]
[1739059846796,0.03,199.88,199.87,17.02064689]
[1739059849126,0.03,199.88,199.87,235.82064689]
[1739059855926,0.03,199.88,199.87,83.0]
[1739059860506,0.03,199.88,199.87,235.82064689]
[1739059861235,0.03,199.97,199.9,20.0]
[1739059861534,0.03,199.97,199.93,17.01904689]
[1739059861729,0.03,199.97,199.94,12.01744689]
[1739059862635,0.03,199.97,199.93,152.81904689]
[1739059863524,0.03,199.97,199.93,140.8016]
[1739059863717,13.44184853,199.97,199.93,140.8016]
[1739059863920,13.44184853,199.97,199.93,135.8]
[1739059864217,0.25098,199.96,199.93,135.8]
[1739059865532,13.66282853,199.96,199.93,135.8]
[1739059866136,13.66282853,199.96,199.9,223.8024]
[1739059867137,13.41184853,199.94,199.9,218.8]
[1739059867369,12.01744689,199.92,199.9,218.8]
[1739059867519,12.01744689,199.92,199.9,83.0]
[1739059867834,0.25098,199.93,199.9,83.0]
[1739059868034,13.66282853,199.93,199.9,83.0]
[1739059868540,0.03,199.97,199.92,12.01744689]
[1739059868736,0.03,199.97,199.93,12.01744689]
[1739059868939,0.03,199.97,199.94,12.01744689]
[1739059869124,0.03,199.97,199.95,12.01744689]
[1739059869450,0.03,199.97,199.96,5.001]
[1739059869655,0.03,199.97,199.96,88.001]
[1739059875033,0.03,199.97,199.96,83.0]
[1739059875353,25.45929542,199.97,199.96,83.0]
[1739059877067,25.71027542,199.97,199.96,83.0]
[1739059880059,0.25098,199.96,199.91,5.0022]
[1739059880263,0.25098,199.96,199.91,223.8022]
[1739059882039,0.03,199.97,199.94,12.01744689]
[1739059882566,0.03,199.97,199.95,12.01744689]
[1739059882732,0.03,199.97,199.95,230.81744689]
[1739059883743,0.03,199.97,199.95,235.81844689]
[1739059893269,0.03,199.97,199.96,0.75004946]
[1739059894075,0.03,199.97,199.96,12.76749635]
[1739059895073,0.03,199.97,199.96,83.0]
[1739059897977,0.03,199.97,199.96,100.01844689]
[1739059898667,0.03,199.97,199.96,235.81844689]
[1739059899177,0.03,199.97,199.96,223.801]
[1739059899476,0.03,199.97,199.96,218.8]
[1739059899975,45.45929542,199.97,199.96,83.0]
[1739059900274,45.71027542,199.97,199.96,83.0]
[1739059900660,13.66282853,199.96,199.91,83.0]
[1739059900854,13.41184853,199.92,199.91,83.0]
[1739059902056,25.68027542,199.92,199.88,0.063]
[1739059902250,25.68027542,199.9,199.88,0.063]
[1739059903177,13.66282853,199.9,199.88,0.063]
[1739059904256,12.01744689,199.95,199.88,0.063]
[1739059904672,45.42929542,199.93,199.88,0.063]
[1739059904975,20.0,199.93,199.88,0.063]
[1739059905277,13.41184853,199.92,199.88,5.066]
[1739059906271,13.41184853,199.92,199.88,0.063]
[1739059907280,0.25098,199.91,199.88,0.063]
[1739059907481,0.25098,199.91,199.88,83.063]
[1739059912666,0.25098,199.91,199.88,95.08044689]
[1739059916090,0.25098,199.91,199.88,83.063]
[1739059922775,13.66282853,199.91,199.88,0.063]